bitfinex/quotes_ETHUSD_20251019
["timestamp","ask_amount","ask_price","bid_price","bid_amount"]
[1760893801165,0.001,4026.2,4026.1,0.124]
[1760893801768,0.001,4026.2,4026.1,0.5742]
[1760893801959,0.001,4026.2,4026.1,0.124]
[1760893804902,0.001,4026.2,4025.7,1.30336294]
[1760893805068,0.3953,4026.1,4025.4,1.42736294]
[1760893805412,2.48400978,4025.8,4025.4,0.124]
[1760893806225,2.48422517,4025.4,4025.1,1.30336294]
[1760893806389,2.60827634,4025.4,4025.0,1.30336294]
[1760893806575,2.48434077,4025.3,4024.9,1.30336294]
[1760893806768,0.124,4025.4,4024.9,1.30336294]
[1760893806769,2.48447204,4025.0,4024.9,1.30336294]
[1760893806980,0.099,4025.3,4024.5,1.30336294]
[1760893807211,0.124,4025.1,4024.5,1.42736294]
[1760893807386,2.60842208,4025.1,4024.5,1.42736294]
[1760893807582,2.60842208,4025.1,4024.6,0.02484718]
[1760893807583,0.124,4025.1,4024.6,0.02484718]
[1760893807784,0.04328219,4027.3,4024.8,3.269]
[1760893807984,2.48273041,4027.9,4026.5,1.30325197]
[1760893808200,0.12,4027.9,4027.1,2.48316757]
[1760893808479,0.2222,4028.0,4027.2,0.2323]
[1760893808682,0.2222,4028.0,4027.3,2.48304995]
[1760893808925,0.12,4028.0,4027.5,2.48291675]
[1760893809221,0.12,4028.3,4027.5,0.4542]
[1760893809373,0.12,4028.3,4027.6,2.4828682]
[1760893809770,0.12,4028.3,4027.5,2.93712931]
[1760893810005,2.60249525,4028.3,4027.3,1.30325197]
[1760893810302,2.48249873,4028.2,4027.3,3.78630121]
[1760893810504,8.54332363,4028.1,4027.2,1.30325197]
[1760893810806,0.12,4028.3,4026.8,1.30325197]
[1760893811035,2.48272177,4027.9,4026.9,2.4832998]
[1760893811196,2.58602177,4027.9,4026.9,2.4832998]
[1760893811533,0.1033,4027.9,4027.1,2.48316158]
[1760893811830,2.58600006,4027.9,4026.9,2.4832998]
[1760893811991,2.58600006,4027.9,4026.9,3.567]
[1760893812391,2.48280656,4027.7,4026.9,1.30325197]
[1760893812590,2.48280656,4027.7,4026.9,3.78655024]
[1760893813406,2.48274492,4027.8,4026.9,1.30325197]
[1760893813619,2.48295469,4027.5,4026.8,1.30325197]
[1760893813820,2.48300346,4027.4,4026.8,1.30325197]
[1760893814128,2.48291935,4027.6,4026.8,1.30325197]
[1760893814306,2.48294335,4027.5,4026.7,1.53555197]
[1760893814827,2.48286802,4027.7,4026.7,2.71566644]
[1760893815025,2.48280656,4027.7,4026.8,2.48336095]
[1760893815323,2.48281177,4027.7,4026.8,2.48336095]
[1760893815527,1.728,4027.8,4026.9,2.48328364]
[1760893816032,2.48294064,4027.5,4026.7,1.53555197]
[1760893816426,2.48312475,4027.2,4026.5,1.30325197]
[1760893816597,2.48305864,4027.3,4026.4,1.30325197]
[1760893816792,2.6559493,4027.5,4026.4,1.30325197]
[1760893816793,3.739,4027.5,4026.4,1.30325197]
[1760893817121,0.1043,4027.9,4026.7,1.30325197]
[1760893817436,0.1043,4027.9,4027.2,2.48305629]
[1760893817437,0.001,4027.9,4027.2,2.48305629]
[1760893817641,0.001,4027.9,4027.2,1.30325197]
[1760893817795,0.001,4027.9,4027.6,0.124]
[1760893817994,0.001,4027.9,4027.6,2.60685186]
[1760893818303,0.001,4027.9,4027.6,3.03655186]
[1760893818501,0.001,4027.9,4027.6,0.5537]
[1760893819323,0.001,4027.9,4027.8,2.48274492]
[1760893819823,0.001,4027.9,4027.8,3.03644492]
[1760893820426,0.001,4027.9,4027.8,4.33582224]
[1760893820724,0.001,4027.9,4027.8,3.03644492]
[1760893821709,0.001,4027.9,4027.8,0.124]
[1760893821937,0.001,4027.9,4027.8,4.33480961]
[1760893822827,0.001,4027.9,4027.8,0.124]
[1760893823828,0.001,4027.9,4027.8,2.48274492]
[1760893824205,0.001,4027.9,4027.7,2.48275322]
[1760893824526,0.001,4027.9,4027.8,2.48274492]
[1760893824895,0.001,4027.9,4027.8,7.11104492]
[1760893825329,0.12,4028.3,4028.2,3.11609838]
[1760893825527,0.003,4028.7,4028.6,2.48225189]
[1760893825528,0.123,4028.7,4028.6,2.48225189]
[1760893825829,0.123,4028.7,4028.6,6.04625189]
[1760893826034,0.123,4028.7,4028.6,3.564]
[1760893826212,0.123,4028.7,4028.6,6.04625189]
[1760893826603,0.123,4028.7,4028.6,3.564]
[1760893827011,0.123,4028.7,4028.4,3.564]
[1760893827233,0.123,4028.7,4028.1,0.2188]
[1760893827427,0.123,4028.7,4028.2,3.564]
[1760893827738,0.123,4028.7,4028.1,0.2188]
[1760893827910,0.123,4028.7,4028.3,3.564]
[1760893828107,0.123,4028.7,4028.4,0.4297]
[1760893828433,0.123,4028.7,4028.3,3.564]
[1760893828634,0.123,4028.7,4028.4,0.4297]
[1760893828834,0.123,4028.7,4028.5,2.48231351]
[1760893829020,0.123,4028.7,4028.1,0.2188]
[1760893829215,0.123,4028.7,4027.4,4.21952179]
[1760893829435,0.123,4028.7,4027.7,1.0633]
[1760893829611,0.123,4028.7,4027.8,0.02482744]
[1760893829810,0.123,4028.7,4028.5,2.48229894]
[1760893830335,0.123,4028.7,4028.6,2.48225189]
[1760893830522,0.123,4028.7,4028.5,0.45452313]
[1760893830523,0.123,4028.7,4028.5,2.4823102]
[1760893830737,0.123,4028.7,4028.1,0.6485]
[1760893830912,0.123,4028.7,4028.5,3.563]
[1760893832363,0.124,4028.7,4028.5,3.563]
[1760893833736,0.124,4028.7,4028.6,0.124]
[1760893834553,0.124,4028.7,4028.0,3.562]
[1760893834751,0.124,4028.7,4028.4,0.124]
[1760893835534,2.48248954,4028.3,4027.4,2.738]
[1760893835842,2.48248954,4028.3,4027.3,2.48300525]
[1760893835843,2.48253025,4028.2,4027.3,3.562]
[1760893836031,2.58684706,4028.3,4027.3,6.04503879]
[1760893836231,2.58684706,4028.3,4027.3,3.562]
[1760893836232,2.48254081,4028.2,4027.3,3.562]
[1760893836636,0.124,4028.7,4027.6,2.48281618]
[1760893836861,0.1044,4028.6,4027.2,3.561]
[1760893837078,0.1044,4028.5,4027.2,3.561]
[1760893837365,2.4824861,4028.3,4027.2,3.561]
[1760893837534,2.58671413,4028.5,4027.3,2.48300457]
[1760893837730,2.48237513,4028.4,4027.2,3.561]
[1760893837975,0.1044,4028.5,4027.2,3.561]
[1760893837976,2.48256902,4028.1,4027.2,3.561]
[1760893838153,2.48256902,4028.1,4027.2,6.04410015]
[1760893838354,2.48256902,4028.1,4027.3,2.48303297]
[1760893838557,2.58689421,4028.3,4027.4,2.48293302]
[1760893838859,0.1044,4028.3,4027.4,2.48293302]
[1760893839172,2.60621201,4028.7,4027.5,2.48292985]
[1760893839370,0.124,4028.7,4027.2,3.561]
[1760893839560,2.48254778,4028.2,4027.3,2.48302028]
[1760893839756,2.48244932,4028.3,4027.4,2.48297309]
[1760893840472,2.48263689,4028.0,4027.1,6.04416842]
[1760893840672,0.1596,4027.9,4027.1,3.561]
[1760893841061,2.48279335,4027.8,4026.9,0.2188]
[1760893841275,0.1596,4027.9,4026.9,3.7788]
[1760893841572,2.60622542,4028.7,4026.9,3.7788]
[1760893841573,2.48257148,4028.1,4027.2,2.48306354]
[1760893841774,2.48263276,4028.0,4027.2,2.48306354]
[1760893842480,2.4824396,4028.3,4026.8,1.73658319]
[1760893842481,0.1606,4027.9,4026.8,1.73658319]
[1760893842649,7.733325,4027.7,4026.4,1.73658319]
[1760893842849,7.733325,4027.7,4026.0,2.85062899]
[1760893842850,0.2166,4026.9,4025.4,1.73658319]
[1760893843050,0.2166,4026.9,4025.1,0.4476]
[1760893843051,2.48373155,4026.2,4025.2,1.73658319]
[1760893843271,2.48373155,4026.2,4025.1,0.4476]
[1760893843571,2.48373155,4026.2,4025.0,2.70321816]
[1760893843760,2.59033155,4026.2,4025.0,2.70321816]
[1760893843966,2.59033155,4026.2,4025.0,0.2188]
[1760893844163,2.59033155,4026.2,4025.1,2.48440885]
[1760893844352,2.59033155,4026.2,4024.8,0.4476]
[1760893844550,15.01696955,4026.2,4024.8,0.4476]
[1760893844769,28.11427708,4026.2,4024.5,0.002]
[1760893845451,15.68763908,4026.2,4024.5,0.002]
[1760893845654,32.35486808,4026.2,4024.5,0.002]
[1760893846682,45.68763908,4026.2,4024.5,0.002]
[1760893847386,14.38449997,4024.6,4024.5,0.002]
[1760893847554,18.41041297,4024.6,4024.5,0.002]
[1760893847754,14.86920597,4024.6,4024.5,0.002]
[1760893848654,21.77402097,4024.6,4024.5,0.002]
[1760893848853,15.01989397,4024.6,4024.5,0.002]
[1760893849080,6.50189397,4024.6,4024.5,0.002]
[1760893849254,10.06189397,4024.6,4024.5,0.002]
[1760893849682,17.21690797,4024.6,4024.5,0.002]
[1760893849886,10.96704697,4024.6,4024.5,0.002]
[1760893850681,24.06449497,4024.6,4024.5,0.002]
[1760893851387,23.67539397,4024.6,4024.5,0.002]
[1760893851586,20.21382697,4024.6,4024.5,0.002]
[1760893851790,16.49321797,4024.6,4024.5,0.002]
[1760893851994,11.53686597,4024.6,4024.5,0.002]
[1760893852157,10.00991197,4024.6,4024.5,0.002]
[1760893852510,15.58003797,4024.6,4024.5,0.002]
[1760893852670,7.88101897,4024.6,4024.5,0.002]
[1760893852876,15.10421497,4024.6,4024.5,0.002]
[1760893853717,7.88101897,4024.6,4024.5,0.002]
[1760893853914,23.20254597,4024.6,4024.5,0.002]
[1760893854216,22.91005597,4024.6,4024.5,0.002]
[1760893854424,2.48446197,4025.1,4024.5,0.002]
[1760893854425,0.3897226,4026.7,4024.5,0.002]
[1760893854564,0.2335,4029.1,4026.0,0.6336]
[1760893854760,0.04328093,4028.6,4026.4,0.6336]
[1760893855092,0.04328093,4028.6,4026.1,1.26651321]
[1760893855093,0.2335,4029.1,4026.5,7.816301]
[1760893855291,0.2335,4029.1,4026.1,0.3728]
[1760893855292,4.521587,4028.4,4026.4,0.1849]
[1760893855593,3.0,4028.4,4026.5,0.6336]
[1760893855907,6.527708,4028.4,4027.1,2.48311747]
[1760893856118,6.527708,4028.4,4026.7,0.6336]
[1760893856119,6.527708,4028.4,4027.2,0.1849]
[1760893856280,2.4824375,4028.3,4027.2,0.1849]
[1760893856611,5.060874,4028.4,4027.2,2.66795667]
[1760893856905,5.060874,4028.4,4027.2,0.1849]
[1760893857455,5.184874,4028.4,4027.7,0.124]
[1760893857660,3.558,4028.3,4027.7,0.124]
[1760893857995,0.124,4028.4,4027.7,2.79170336]
[1760893858200,3.558,4028.2,4027.7,2.79170336]
[1760893858402,0.001,4028.5,4027.8,2.66763832]
[1760893858571,3.558,4028.3,4027.9,2.48267413]
[1760893858777,3.557,4028.3,4028.0,0.1849]
[1760893859099,3.557,4028.3,4026.9,0.6336]
[1760893859100,0.001,4028.5,4028.2,0.6336]
[1760893859471,0.001,4028.5,4028.4,2.48237513]
[1760893859969,0.001,4028.5,4028.4,2.66727513]
[1760893860170,0.001,4028.5,4028.4,0.1849]
[1760893860374,0.001,4028.5,4027.7,0.6336]
[1760893860675,0.001,4028.5,4028.1,2.48255811]
[1760893860983,0.001,4028.5,4028.2,2.48249679]
[1760893861474,0.001,4028.5,4028.2,2.66739679]
[1760893861671,0.001,4028.5,4028.3,2.66733358]
[1760893861979,0.001,4028.5,4025.7,2.17072899]
[1760893861980,0.001,4028.5,4026.9,2.48328791]
[1760893862182,0.001,4028.5,4025.2,2.17072899]
[1760893862183,0.001,4028.5,4027.5,0.1849]
[1760893862556,0.001,4028.5,4027.6,2.48281039]
[1760893862761,0.001,4028.5,4027.7,2.48280198]
[1760893863098,0.001,4028.5,4027.6,2.48286731]
[1760893863304,0.001,4028.5,4027.7,2.48280404]
[1760893863640,2.4833486,4028.5,4027.5,0.1849]
[1760893863888,2.4833486,4028.5,4027.2,3.11671481]
[1760893864060,2.4833486,4028.5,4027.4,2.48293222]
[1760893864263,0.001,4028.5,4027.1,0.1849]
[1760893864479,2.48246276,4028.3,4027.3,2.48304576]
[1760893864962,2.48250509,4028.2,4027.2,2.48309042]
[1760893865161,2.48237513,4028.4,4027.1,2.66807062]
[1760893865404,2.48244994,4028.3,4026.6,3.11708482]
[1760893865601,0.4646,4028.4,4027.0,0.1849]
[1760893865902,2.48238736,4028.4,4027.4,2.482935]
[1760893866999,2.48246555,4028.3,4027.3,2.48299828]
[1760893867302,2.48246555,4028.3,4027.0,2.66811847]
[1760893867303,2.48243136,4028.4,4027.1,2.48317647]
[1760893867603,2.48332154,4028.5,4027.2,2.4830958]
[1760893868191,2.48332154,4028.5,4027.5,2.48291157]
[1760893868398,2.60638462,4028.4,4027.7,0.124]
[1760893868597,2.48243859,4028.3,4027.7,0.124]
[1760893868795,0.124,4028.4,4027.7,0.124]
[1760893868995,2.48251155,4028.2,4027.7,0.124]
[1760893869194,3.553,4028.3,4027.7,0.124]
[1760893869402,2.48249838,4028.2,4027.7,0.124]
[1760893869599,0.04325692,4028.1,4027.7,0.124]
[1760893869990,6.03544011,4028.3,4027.7,0.124]
[1760893870185,2.48252037,4028.2,4027.7,0.124]
[1760893870572,2.48258969,4028.1,4027.7,0.124]
[1760893870905,2.48257937,4028.1,4027.7,0.124]
[1760893871207,2.48267217,4028.0,4027.7,0.124]
[1760893871700,0.2267,4027.8,4027.7,0.124]
[1760893871909,0.2267,4027.8,4027.3,0.124]
[1760893872105,6.03480724,4027.7,4027.3,0.124]
[1760893872301,0.2267,4027.8,4027.3,0.124]
[1760893872302,3.552,4027.6,4027.3,0.124]
[1760893873817,6.03489875,4027.6,4027.3,0.124]
[1760893874600,3.552,4027.6,4027.3,0.124]
[1760893874798,2.48280656,4027.7,4027.3,0.124]
[1760893875036,3.551,4027.6,4027.3,0.124]
[1760893876624,0.124,4027.9,4027.4,0.65842991]
[1760893876823,0.5615,4028.9,4026.6,0.1853]
[1760893877161,0.5615,4028.9,4026.9,0.6336]
[1760893877162,0.9496,4028.3,4026.9,0.6336]
[1760893877348,0.001,4028.4,4027.0,0.21013238]
[1760893877522,0.001,4028.4,4027.1,0.6336]
[1760893877728,0.001,4028.4,4027.6,0.6336]
[1760893878153,0.001,4028.4,4027.7,2.48280656]
[1760893878357,0.001,4028.4,4027.0,3.7353]
[1760893878358,0.001,4028.4,4027.0,3.55]
[1760893878684,0.001,4028.4,4027.5,0.6336]
[1760893879091,0.001,4028.4,4027.5,3.11652127]
[1760893879295,0.001,4028.4,4027.8,2.48272652]
[1760893879476,0.001,4028.4,4027.2,0.1853]
[1760893879477,0.04325224,4028.2,4027.9,2.48268094]
[1760893879677,0.001,4028.4,4027.9,2.48268094]
[1760893879878,0.001,4028.4,4027.3,0.6336]
[1760893880184,2.48244022,4028.3,4027.2,0.1853]
[1760893880364,2.48342298,4028.4,4027.2,2.66841265]
[1760893880569,3.549,4028.2,4027.2,2.66841265]
[1760893881067,3.549,4028.2,4027.5,2.48287868]
[1760893881386,3.549,4028.2,4027.2,0.1853]
[1760893881556,3.549,4028.2,4027.7,2.48279956]
[1760893881996,3.549,4028.2,4027.2,0.1853]
[1760893882168,3.549,4028.2,4027.5,2.48291943]
[1760893882368,3.549,4028.2,4027.4,2.48298517]
[1760893882369,6.03151122,4028.2,4027.4,2.48298517]
[1760893882565,6.03151122,4028.2,4027.5,2.48292974]
[1760893882566,3.549,4028.2,4027.5,2.48292974]
[1760893882762,3.549,4028.2,4027.3,2.48301335]
[1760893883089,3.549,4028.2,4027.0,3.55]
[1760893883381,0.4316,4028.4,4027.0,3.55]
[1760893883382,3.548,4028.3,4027.0,3.55]
[1760893883683,2.48249838,4028.2,4027.0,6.03322456]
[1760893883885,2.48249838,4028.2,4026.7,2.37018319]
[1760893883886,2.48268826,4027.9,4026.7,2.48342315]
[1760893884101,2.48268826,4027.9,4026.4,0.1853]
[1760893884102,0.2267,4027.8,4026.4,0.1853]
[1760893884279,0.2267,4027.8,4027.0,2.48317741]
[1760893884475,0.2267,4027.8,4027.0,2.48323814]
[1760893884775,2.48244357,4028.3,4027.0,0.1853]
[1760893884974,6.02950888,4028.2,4027.4,2.4829915]
[1760893885173,6.02950888,4028.2,4027.2,1.73658319]
[1760893885378,6.02950888,4028.2,4027.2,4.21964057]
[1760893885584,2.48258643,4028.1,4027.2,1.73658319]
[1760893885978,2.48264217,4028.0,4027.2,2.48308262]
[1760893886194,0.03047849,4030.0,4027.0,1.73658319]
[1760893886394,0.50392538,4033.6,4026.6,0.1853]
[1760893886395,2.47924935,4033.5,4029.7,2.616]
[1760893886593,0.176,4031.9,4031.0,0.2209]
[1760893886905,3.722,4031.9,4030.2,2.17072899]
[1760893887106,2.871528,4031.7,4031.5,1.73323958]
[1760893887302,0.176,4031.9,4031.1,1.7580467]
[1760893887508,3.546,4031.8,4031.2,1.73323958]
[1760893887898,3.546,4031.7,4031.2,1.73323958]
[1760893888077,3.546,4031.7,4031.1,1.73323958]
[1760893888402,3.546,4031.7,4030.6,2.62322899]
[1760893888403,3.546,4031.6,4031.5,1.29453726]
[1760893888714,3.545,4031.6,4031.5,1.29453726]
[1760893889175,3.545,4031.6,4031.4,1.29453726]
[1760893889694,3.545,4031.6,4030.5,2.48106349]
[1760893889695,5.98216232,4031.5,4031.2,1.29453726]
[1760893889871,2.48058938,4031.3,4031.2,1.29453726]
[1760893890072,2.48058938,4031.3,4031.1,1.29453726]
[1760893890272,3.545,4031.6,4031.1,1.29453726]
[1760893890575,3.544,4031.5,4031.4,0.86135272]
[1760893890774,3.58722438,4031.5,4031.4,0.86135272]
[1760893891174,3.58722438,4031.5,4030.0,2.39162899]
[1760893891175,2.64845,4031.4,4031.2,0.86135272]
[1760893891472,3.544,4031.3,4031.2,0.64566991]
[1760893891669,11.09323938,4031.3,4031.0,0.64566991]
[1760893891871,3.267,4031.1,4031.0,0.64566991]
[1760893892104,5.74771246,4031.1,4031.0,0.64566991]
[1760893892306,2.480774,4031.0,4030.8,0.64566991]
[1760893892476,2.65876859,4031.9,4030.7,0.86135272]
[1760893892477,3.543,4030.9,4030.7,0.86135272]
[1760893892783,1.728,4031.7,4030.7,0.86135272]
[1760893892983,6.595164,4031.6,4031.1,0.64548624]
[1760893893214,2.48053937,4031.4,4030.9,0.64548624]
[1760893893373,6.02363588,4031.3,4031.0,0.64548624]
[1760893893571,3.543,4031.2,4031.1,0.64548624]
[1760893893796,6.02365092,4031.2,4031.1,0.64548624]
[1760893894016,6.02365092,4031.2,4030.1,0.4525]
[1760893894017,3.9685,4031.2,4030.9,0.64548624]
[1760893894188,2.1535,4031.8,4031.0,0.64548624]
[1760893894388,8.492818,4031.5,4031.1,0.64548624]
[1760893894584,2.48065092,4031.2,4031.0,0.64548624]
[1760893894802,2.48065092,4031.2,4031.1,0.64548624]
[1760893895011,3.543,4031.4,4031.0,0.64548624]
[1760893895012,2.48071246,4031.1,4031.0,0.64548624]
[1760893895187,2.48071246,4031.1,4031.0,0.6450635]
[1760893895390,2.48077994,4031.0,4030.9,0.6450635]
[1760893895892,2.48070975,4031.2,4030.9,0.6450635]
[1760893896094,6.02272956,4031.1,4030.9,0.6450635]
[1760893896407,6.022774,4031.0,4030.9,0.6450635]
[1760893896610,6.448274,4031.0,4030.9,0.6450635]
[1760893896800,6.398274,4031.0,4030.9,0.6450635]
[1760893897002,8.51015464,4030.7,4030.6,0.6450635]
[1760893897203,5.60145,4030.5,4030.3,0.6450635]
[1760893897517,2.48126643,4030.2,4030.1,0.6450635]
[1760893897893,6.52171,4030.1,4030.0,0.6450635]
[1760893898215,6.52171,4030.1,4029.6,0.6450635]
[1760893898216,2.48157431,4029.7,4029.6,0.6450635]
[1760893898395,2.48157431,4029.7,4028.6,0.2209]
[1760893898396,3.541,4029.7,4029.3,0.86135272]
[1760893898709,3.541,4029.7,4029.6,0.64550844]
[1760893898710,6.48108162,4029.7,4029.6,0.64550844]
[1760893898898,2.48163589,4029.6,4029.5,0.64550844]
[1760893899098,2.94013589,4029.6,4029.5,0.64550844]
[1760893899314,2.9401449,4029.6,4029.1,1.29453726]
[1760893899517,2.9401449,4029.6,4028.5,4.68193655]
[1760893899518,6.81600507,4029.4,4029.3,0.8610413]
[1760893899693,6.81600507,4029.4,4029.0,0.8610413]
[1760893899694,2.48188225,4029.2,4029.0,0.8610413]
[1760893900014,6.02294385,4029.1,4029.0,0.64599896]
[1760893900505,12.783106,4028.9,4028.8,0.64599896]
[1760893900709,12.25904206,4028.9,4028.8,0.64599896]
[1760893900888,12.25904206,4028.9,4028.5,0.8610413]
[1760893900889,2.48212867,4028.8,4028.5,0.64650742]
[1760893901088,2.48225189,4028.6,4028.5,0.64650742]
[1760893901303,9.32988751,4028.5,4028.4,0.64650742]
[1760893901503,8.40429013,4028.4,4028.3,0.64650742]
[1760893901818,3.54,4028.4,4028.2,0.8610413]
[1760893902186,6.02238052,4028.4,4028.2,0.8610413]
[1760893902394,2.48249838,4028.2,4028.1,0.8610413]
[1760893902586,3.54,4028.4,4028.1,0.8610413]
[1760893902799,1.728,4028.8,4028.3,0.64692493]
[1760893903007,2.48243675,4028.3,4028.0,0.64692493]
[1760893903326,3.54,4028.2,4028.1,0.64707299]
[1760893903630,2.48268328,4027.9,4027.8,0.8610413]
[1760893903799,2.48268328,4027.9,4027.7,0.8610413]
[1760893903800,2.48274492,4027.8,4027.7,0.8610413]
[1760893904118,2.48274492,4027.8,4027.3,0.8610413]
[1760893904119,2.4829915,4027.4,4027.3,0.8610413]
[1760893904421,2.4829915,4027.4,4027.1,1.52833726]
[1760893904422,3.54,4027.4,4027.1,1.52833726]
[1760893904721,2.48281128,4027.7,4027.3,1.29453726]
[1760893904940,11.4175642,4027.6,4027.4,0.86295808]
[1760893905222,2.48305316,4027.3,4027.2,0.6474721]
[1760893905428,2.1782,4027.5,4026.7,0.6474721]
[1760893905724,2.1782,4027.5,4026.9,0.6474721]
[1760893905725,2.48323814,4027.0,4026.9,0.6474721]
[1760893905894,2.4832998,4026.9,4026.8,0.6474721]
[1760893906092,3.539,4027.0,4026.8,0.6474721]
[1760893906306,2.4832998,4026.9,4026.8,0.6474721]
[1760893906515,6.02229822,4027.0,4026.7,0.6474721]
[1760893906829,2.4832998,4026.9,4026.7,0.6474721]
[1760893907035,1.728,4027.4,4026.8,0.6474721]
[1760893907234,0.124,4026.9,4026.8,0.64734987]
[1760893907534,3.663,4026.9,4026.8,0.64734987]
[1760893908099,3.663,4026.9,4026.7,0.64734987]
[1760893908422,3.539,4026.9,4026.5,0.64734987]
[1760893908816,0.04326921,4026.9,4026.6,0.64734987]
[1760893909012,3.539,4026.8,4026.6,0.64734987]
[1760893909249,0.04326921,4026.9,4026.5,0.64734987]
[1760893909436,3.58226921,4026.9,4026.8,0.64734987]
[1760893910241,3.58226921,4026.9,4026.7,0.64734987]
[1760893910447,3.58226921,4026.9,4026.8,0.4664]
[1760893910749,0.04326921,4026.9,4026.8,1.11374987]
[1760893911051,0.04326921,4026.9,4026.8,0.4664]
[1760893911653,0.04326921,4026.9,4026.8,1.11276107]
[1760893912215,0.1762,4027.8,4026.8,1.11276107]
[1760893912216,3.539,4027.3,4026.9,2.48328316]
[1760893912418,3.538,4027.4,4027.2,0.2338]
[1760893912636,0.12,4028.0,4027.3,0.4664]
[1760893912839,3.538,4027.9,4027.4,2.48297293]
[1760893913050,0.12,4028.0,4027.5,2.48291225]
[1760893913252,3.538,4027.9,4027.4,2.94937879]
[1760893913658,0.12,4028.0,4027.5,0.4664]
[1760893913958,0.12,4028.2,4027.6,0.4664]
[1760893914119,3.538,4028.1,4027.6,2.94925477]
[1760893914321,3.538,4028.1,4027.2,0.87985353]
[1760893914935,2.48262164,4028.0,4027.2,2.71691069]
[1760893915154,3.538,4028.1,4027.2,0.87985353]
[1760893915155,6.02056127,4028.1,4027.2,0.87985353]
[1760893915356,2.48272148,4027.9,4027.2,0.2338]
[1760893915718,2.48263578,4028.0,4027.2,2.71690933]
[1760893915924,2.48268456,4027.9,4027.2,0.2338]
[1760893916156,3.538,4028.1,4027.2,0.2338]
[1760893916868,0.1811,4027.3,4027.0,0.64605353]
[1760893917034,0.1811,4027.3,4026.6,0.64605353]
[1760893917035,3.536,4027.3,4026.6,0.64605353]
[1760893917234,0.3994,4028.0,4026.8,0.64605353]
[1760893917235,2.48273753,4027.9,4026.8,0.64605353]
[1760893917480,3.536,4027.8,4026.8,3.12937551]
[1760893917640,3.536,4027.7,4027.0,3.12923385]
[1760893917841,3.536,4027.6,4027.1,2.71697586]
[1760893918053,3.536,4027.6,4027.2,2.48309861]
[1760893918253,3.536,4027.6,4027.3,0.4664]
[1760893918458,3.536,4027.6,4027.2,0.124]
[1760893918659,0.124,4027.9,4027.2,3.07350802]
[1760893918873,3.536,4027.8,4027.2,3.07350802]
[1760893919374,3.536,4027.8,4027.2,3.71956155]
[1760893919577,3.536,4027.8,4027.2,1.23645353]
[1760893919875,3.536,4027.8,4027.2,0.5904]
[1760893920076,3.536,4027.8,4027.2,1.23645353]
[1760893920275,3.536,4027.8,4027.3,0.64605353]
[1760893920490,0.124,4027.9,4027.3,0.64605353]
[1760893920787,0.3972,4028.7,4027.1,1.09675808]
[1760893920788,3.535,4028.1,4027.7,0.77005353]
[1760893920986,3.535,4028.1,4027.7,1.23645353]
[1760893921143,3.535,4028.1,4027.8,0.64605353]
[1760893921883,0.124,4028.3,4027.8,0.64605353]
[1760893922067,0.12,4028.8,4028.2,0.2338]
[1760893922266,0.3972,4029.1,4028.2,0.2338]
[1760893922267,0.12,4028.9,4028.5,2.48230831]
[1760893922575,0.244,4029.1,4028.8,0.64605353]
[1760893922962,0.244,4029.1,4028.9,0.64605353]
[1760893923173,0.244,4029.1,4028.4,0.124]
[1760893923174,0.244,4029.1,4029.0,0.64605353]
[1760893923955,0.244,4029.1,4028.7,0.86295808]
[1760893923956,0.12,4029.1,4028.9,0.86295808]
[1760893924189,0.001,4031.0,4030.9,2.48083554]
[1760893924407,0.001,4031.0,4030.9,6.64743554]
[1760893925096,0.001,4031.0,4030.9,7.08483554]
[1760893925458,0.2203,4033.3,4032.1,2.48003589]
[1760893925670,2.60275583,4033.7,4032.1,2.48003589]
[1760893925671,0.12359791,4033.7,4032.7,0.64534797]
[1760893925854,0.2203,4034.5,4033.4,0.64534797]
[1760893926164,0.2203,4034.5,4032.7,0.4374]
[1760893926165,0.2203,4034.5,4033.5,0.64534797]
[1760893926364,0.2203,4034.5,4031.9,2.17072899]
[1760893926365,2.666641,4034.3,4033.1,0.64534797]
[1760893926564,0.2203,4034.5,4033.0,0.64534797]
[1760893926565,0.2203,4033.6,4033.0,0.64534797]
[1760893926780,1.728,4034.4,4033.1,0.85494797]
[1760893926986,3.7513,4034.5,4033.2,1.08274797]
[1760893927185,0.2203,4034.5,4033.3,0.64534797]
[1760893927383,2.47875422,4034.3,4033.4,0.4374]
[1760893927593,2.47872272,4034.4,4033.4,0.4374]
[1760893927786,2.4786848,4034.4,4033.4,0.4374]
[1760893927991,2.47915178,4033.7,4033.2,0.64534797]
[1760893928190,3.531,4034.7,4033.1,0.2096]
[1760893928191,0.2203,4033.9,4033.1,0.2096]
[1760893928358,0.2203,4033.9,4032.7,0.64534797]
[1760893928560,1.9483,4034.8,4032.9,0.64534797]
[1760893928760,2.47923938,4033.5,4032.8,0.64534797]
[1760893928983,2.47926175,4033.5,4032.7,0.64534797]
[1760893929181,2.47874476,4034.3,4032.7,0.64534797]
[1760893929182,2.1902,4034.4,4032.8,0.64534797]
[1760893929383,2.4788062,4034.2,4032.7,1.08274797]
[1760893929589,0.4622,4034.1,4032.5,0.64534797]
[1760893929792,3.285149,4033.7,4032.2,3.755]
[1760893929965,2.4796143,4032.9,4032.2,0.87034797]
[1760893930160,2.4796143,4032.9,4032.0,0.64534797]
[1760893930161,0.2172,4032.9,4032.0,0.64534797]
[1760893930394,2.48005994,4032.2,4031.6,3.529]
[1760893930594,3.529,4032.5,4031.4,0.64534797]
[1760893930862,3.529,4032.5,4031.1,0.4374]
[1760893930863,2.48031611,4031.8,4031.1,0.4374]
[1760893931087,2.48032359,4031.8,4031.0,0.2096]
[1760893931309,2.4803599,4031.7,4031.0,0.2096]
[1760893931516,0.162,4031.9,4031.0,0.2096]
[1760893931517,3.528,4032.3,4031.1,2.48070493]
[1760893931683,6.00797528,4032.3,4031.2,2.48064866]
[1760893931884,6.00797528,4032.3,4031.0,0.2096]
[1760893931885,2.48016729,4032.0,4031.0,0.2096]